bitfinex/quotes_ETHUSD_20240926
["timestamp","ask_amount","ask_price","bid_price","bid_amount"]
[1727361272059,3.79614,2634.3,2633.8,4.62541]
[1727361272287,3.79614,2634.3,2633.8,3.79678]
[1727361272491,3.79614,2634.3,2633.7,0.55]
[1727361272695,3.79644,2634.1,2633.6,3.79698]
[1727361272877,0.8390807,2634.4,2633.6,3.79698]
[1727361272878,7.59232,2634.3,2633.7,3.79685]
[1727361273085,0.8390807,2634.4,2633.7,8.45437762]
[1727361273086,3.79622,2634.2,2633.7,8.45437762]
[1727361273464,3.79609,2634.3,2633.8,3.79667]
[1727361273669,3.79638,2634.1,2633.7,4.65752762]
[1727361273869,8.43545207,2634.3,2633.7,8.45441762]
[1727361274107,7.59233,2634.3,2633.7,8.45441762]
[1727361274319,0.0376807,2634.4,2634.1,4.65752762]
[1727361274469,0.0376807,2634.4,2634.3,3.79607]
[1727361274871,0.0376807,2634.4,2634.2,3.7961]
[1727361275169,0.0376807,2634.4,2634.3,3.87198306]
[1727361275368,0.0376807,2634.4,2634.3,8.45359762]
[1727361275622,0.0376807,2634.4,2634.3,9.00359762]
[1727361276299,0.0376807,2634.4,2634.3,8.45359762]
[1727361276614,0.0376807,2634.4,2634.2,3.79621]
[1727361277140,0.0376807,2634.4,2634.1,8.45379762]
[1727361277320,0.0376807,2634.4,2634.2,3.87211515]
[1727361277484,0.0376807,2634.4,2634.2,3.79614]
[1727361277832,0.0376807,2634.4,2634.3,3.79607]
[1727361278611,0.0376807,2634.4,2634.3,3.87197711]
[1727361279321,0.0376807,2634.4,2634.3,3.79607]
[1727361280116,0.0376807,2634.4,2634.3,7.42197716]
[1727361280315,0.0376807,2634.4,2634.3,8.20517716]
[1727361280483,0.0376807,2635.2,2635.0,3.79498]
[1727361280683,0.0376807,2635.2,2635.0,4.65752762]
[1727361281166,3.8325207,2635.2,2634.6,8.45307762]
[1727361281465,3.79493,2635.1,2634.6,8.45306762]
[1727361281622,3.79518,2635.0,2634.4,8.45336762]
[1727361281821,0.0376807,2635.2,2634.5,0.07590635]
[1727361282063,0.0376807,2635.2,2634.6,3.79554]
[1727361282268,3.8325407,2635.2,2634.6,3.79554]
[1727361282474,3.79496,2635.1,2634.6,3.79554]
[1727361282686,3.79508,2635.0,2634.5,3.79576]
[1727361282969,0.76275007,2635.1,2634.1,7.59262]
[1727361282970,3.79565,2634.6,2634.1,7.59262]
[1727361283153,3.79551,2634.7,2634.2,3.79618]
[1727361283577,0.7573,2634.9,2634.5,3.79575]
[1727361283869,0.7573,2634.9,2634.3,3.87198548]
[1727361283870,7.59053,2634.9,2634.4,3.79592]
[1727361284028,3.79545,2634.8,2634.2,3.79612]
[1727361284233,0.7507,2634.5,2633.8,3.79668]
[1727361284428,3.79614,2634.3,2633.8,3.79668]
[1727361284644,0.7507,2634.5,2633.7,5.41632762]
[1727361284849,0.7507,2634.5,2633.8,3.79672]
[1727361285445,4.54648,2634.5,2634.0,3.79648]
[1727361285678,4.54648,2634.5,2633.9,3.87256503]
[1727361285679,3.79596,2634.4,2633.9,3.87256503]
[1727361286192,3.79596,2634.4,2633.7,5.41632762]
[1727361286193,0.834236,2634.4,2633.7,4.65752762]
[1727361286351,3.79638,2634.1,2633.6,3.79701]
[1727361286691,3.79654,2634.0,2633.5,3.79722]
[1727361286860,3.79665,2633.9,2633.4,8.45593642]
[1727361287275,3.79659,2634.0,2633.4,12.25318642]
[1727361287590,0.7507,2634.5,2633.6,3.79705]
[1727361287591,3.79621,2634.2,2633.6,3.79705]
[1727361287755,3.79621,2634.2,2633.6,7.59405]
[1727361288086,3.79621,2634.2,2633.7,3.79687]
[1727361288416,3.79614,2634.3,2633.8,3.87268413]
[1727361288588,3.79622,2634.2,2633.7,7.59372]
[1727361288953,3.79622,2634.2,2633.7,3.79685]
[1727361289264,3.79614,2634.3,2633.5,3.79712]
[1727361289265,3.79636,2634.1,2633.6,3.79708]
[1727361289591,4.250844,2634.3,2633.8,3.7967]
[1727361289789,3.79616,2634.3,2633.8,3.7967]
[1727361289992,3.79537,2634.8,2634.2,3.7961]
[1727361289993,4.58467,2634.8,2634.2,3.7961]
[1727361290200,3.79557,2634.7,2634.2,3.87209451]
[1727361290368,3.79557,2634.7,2634.2,3.79618]
[1727361290567,0.7893,2634.8,2634.3,3.87193452]
[1727361290876,3.79503,2635.1,2634.4,0.8184]
[1727361291186,3.79517,2635.0,2634.2,8.45477642]
[1727361291393,3.79523,2634.9,2634.4,3.79585]
[1727361291860,3.79523,2634.9,2634.3,3.79599]
[1727361291861,4.57832,2634.8,2634.3,3.79599]
[1727361292215,4.57832,2634.8,2634.2,8.45478642]
[1727361292216,3.7956,2634.7,2634.2,3.79621]
[1727361292413,3.79557,2634.7,2634.1,3.79629]
[1727361292714,3.79586,2634.5,2634.0,7.59287]
[1727361292920,3.79564,2634.6,2634.0,3.79638]
[1727361293215,3.79564,2634.6,2634.1,3.79628]
[1727361293427,0.45785,2634.7,2634.0,3.79638]
[1727361293428,4.25335,2634.7,2634.2,3.79618]
[1727361293584,4.25335,2634.7,2634.2,7.59232]
[1727361293779,4.57833,2634.8,2634.3,3.79601]
[1727361294578,4.57833,2634.8,2634.2,7.59228]
[1727361295002,4.57833,2634.8,2634.2,3.79614]
[1727361295975,4.57833,2634.8,2634.3,3.79605]
[1727361296826,0.7669,2635.1,2634.3,0.0759156]
[1727361297119,3.79544,2634.8,2634.2,8.45478642]
[1727361297321,3.79538,2634.8,2634.3,3.79606]
[1727361297530,3.79538,2634.8,2634.4,3.79588]
[1727361298426,3.79518,2635.0,2634.4,3.79588]
[1727361298427,7.59035,2635.0,2634.4,3.79588]
[1727361298628,0.7669,2635.1,2634.6,3.79556]
[1727361299026,0.7669,2635.1,2634.6,3.79555]
[1727361299230,0.0376807,2635.2,2634.7,3.87132587]
[1727361299433,0.0376807,2635.2,2634.9,3.7952]
[1727361299741,0.0376807,2635.2,2634.7,3.79542]
[1727361299943,3.8324707,2635.2,2634.7,7.59083]
[1727361300449,0.0376807,2635.2,2634.7,3.87131098]
[1727361300653,0.0376807,2635.2,2634.2,4.65867642]
[1727361300654,3.79539,2634.8,2634.2,4.65867642]
[1727361300816,3.79542,2634.8,2634.4,3.79585]
[1727361301149,3.79542,2634.8,2634.2,4.65867642]
[1727361301150,3.79542,2634.8,2634.3,3.79603]
[1727361301453,3.79551,2634.7,2634.2,4.65867642]
[1727361301963,3.79572,2634.6,2634.1,3.79621]
[1727361302242,3.79551,2634.7,2634.2,3.79619]
[1727361302452,3.79551,2634.7,2634.1,3.79621]
[1727361302453,3.79565,2634.6,2634.1,3.79621]
[1727361302739,0.7649,2634.8,2634.2,3.7962]
[1727361303044,3.79553,2634.7,2634.2,3.7962]
[1727361303218,3.79572,2634.6,2634.1,7.59257]
[1727361303734,4.56036,2634.8,2634.1,7.59257]
[1727361303735,3.7955,2634.7,2634.1,3.79622]
[1727361303920,3.7955,2634.7,2634.3,3.79605]
[1727361304105,3.8325407,2635.2,2634.7,3.79542]
[1727361304306,0.0376807,2635.2,2634.6,4.65867642]
[1727361304605,3.79527,2634.9,2634.4,3.79591]
[1727361304804,3.79517,2635.0,2634.5,3.79567]
[1727361305054,3.79524,2634.9,2634.5,3.79567]
[1727361305636,3.79517,2635.0,2634.2,5.46387642]
[1727361305811,3.79517,2635.0,2634.1,3.0]
[1727361305812,3.79571,2634.6,2634.1,3.79626]
[1727361306008,7.59147,2634.6,2634.1,3.79626]
[1727361306345,0.379517,2634.9,2633.9,3.79653]
[1727361306346,3.79602,2634.4,2633.9,3.79653]
[1727361306549,3.79622,2634.2,2633.8,5.40937642]
[1727361306845,3.79602,2634.4,2633.9,3.79653]
[1727361307047,3.7961,2634.3,2633.9,3.79653]
[1727361307554,3.79602,2634.4,2633.9,3.79653]
[1727361307767,3.79602,2634.4,2633.8,4.65867642]
[1727361307768,0.7585,2634.2,2633.8,4.65867642]
[1727361307917,4.55482,2634.2,2633.5,3.79712]
[1727361308261,3.79666,2633.9,2633.3,8.45617642]
[1727361308421,3.79666,2633.9,2633.4,3.79733]
[1727361308762,0.7585,2634.2,2633.6,3.79707]
[1727361308922,0.7585,2634.2,2633.5,3.79709]
[1727361309125,3.79643,2634.1,2633.6,3.79704]
[1727361309528,4.55473,2634.2,2633.7,3.79686]
[1727361309832,3.79587,2634.5,2634.0,3.79641]
[1727361310144,3.79587,2634.5,2634.1,3.79634]
[1727361310344,3.79593,2634.4,2634.0,3.79649]
[1727361310549,3.79624,2634.2,2633.7,8.45550642]
[1727361310727,3.79624,2634.2,2633.7,3.79683]
[1727361310928,3.79614,2634.3,2633.8,3.79677]
[1727361311148,3.79614,2634.3,2633.7,3.79683]
[1727361311353,3.79623,2634.2,2633.7,3.79683]
[1727361311659,3.79614,2634.3,2633.7,3.79683]
[1727361311858,3.79631,2634.2,2633.7,3.79682]
[1727361312159,3.79614,2634.3,2633.8,3.79677]
[1727361312330,3.79614,2634.3,2633.7,3.79682]
[1727361312533,4.175784,2634.3,2633.5,0.8155]
[1727361312722,3.79589,2634.5,2633.7,4.65867642]
[1727361312930,3.79589,2634.5,2634.0,3.79642]
[1727361313962,7.59177,2634.5,2634.0,3.79642]
[1727361314125,3.79588,2634.5,2634.0,3.79642]
[1727361314325,12.42,2636.3,2634.2,3.7962]
[1727361314326,7.59118,2634.7,2634.2,3.7962]
[1727361314536,3.79557,2634.7,2634.0,3.79641]
[1727361314753,3.79579,2634.5,2634.1,3.79636]
[1727361315083,7.59115,2634.7,2634.2,3.79621]
[1727361315378,3.79557,2634.7,2634.0,7.5928]
[1727361315689,3.79645,2634.1,2633.6,3.79707]
[1727361315847,3.79645,2634.1,2633.6,3.797]
[1727361316045,4.55182,2634.2,2633.6,3.797]
[1727361316263,3.79594,2634.4,2634.0,3.79649]
[1727361316560,3.79594,2634.4,2633.9,3.79661]
[1727361317398,3.79614,2634.3,2633.8,3.79678]
[1727361317554,3.79594,2634.4,2633.8,3.79669]
[1727361317967,3.79578,2634.5,2634.0,4.5484]
[1727361318153,4.55133,2634.6,2634.0,4.5484]
[1727361318354,3.79587,2634.5,2634.0,4.5484]
[1727361319083,4.63059,2634.5,2633.8,3.79669]
[1727361319285,4.63059,2634.5,2633.9,3.79664]
[1727361319286,3.79607,2634.3,2633.9,3.79664]
[1727361319594,3.79593,2634.4,2633.9,3.79662]
[1727361319798,3.79608,2634.3,2633.8,3.79669]
[1727361320101,3.79608,2634.3,2633.9,3.79662]
[1727361320455,0.7556,2634.6,2634.0,3.87242631]
[1727361320691,0.7556,2634.6,2634.2,3.79614]
[1727361321109,0.7556,2634.6,2634.1,3.79626]
[1727361321395,3.79578,2634.5,2634.1,3.79626]
[1727361321687,3.79614,2634.3,2633.7,4.54882]
[1727361321898,3.79593,2634.4,2633.9,3.79664]
[1727361322101,3.79611,2634.3,2633.9,3.79664]
[1727361322251,3.79625,2634.2,2633.8,3.79677]
[1727361322577,3.79609,2634.3,2633.9,3.79664]
[1727361322950,3.79609,2634.3,2633.8,3.79673]
[1727361323156,7.59175,2634.5,2633.9,3.79663]
[1727361323363,3.79586,2634.5,2633.9,3.79663]
[1727361323655,7.59228,2634.3,2633.8,3.79677]
[1727361323993,3.79697,2633.7,2633.3,3.79749]
[1727361324300,3.79669,2633.9,2633.3,3.79739]
[1727361324301,3.79681,2633.8,2633.3,3.79739]
[1727361324453,3.79669,2633.9,2633.4,3.79736]
[1727361324653,3.79651,2634.0,2633.5,3.79715]
[1727361324968,4.61453,2634.4,2633.9,3.79653]
[1727361325702,3.79575,2634.6,2633.7,4.65867642]
[1727361325897,3.79575,2634.6,2634.0,3.7965]
[1727361326053,3.79575,2634.6,2634.1,3.79634]
[1727361326257,4.61406,2634.7,2634.2,3.7962]
[1727361326481,3.79556,2634.7,2634.2,4.6289]
[1727361326713,3.79536,2634.8,2634.3,3.79604]
[1727361326875,0.0376807,2635.2,2634.8,3.79535]
[1727361327365,3.8325707,2635.2,2634.6,3.79555]
[1727361327571,3.8325707,2635.2,2634.7,3.79549]
[1727361327756,3.79495,2635.1,2634.6,3.79555]
[1727361327952,3.8325707,2635.2,2634.6,3.79555]
[1727361328552,3.79496,2635.1,2634.6,3.79555]
[1727361328862,3.8324507,2635.2,2634.6,3.79553]
[1727361329094,0.0376807,2635.2,2635.0,3.79506]
[1727361329305,0.0376807,2635.2,2634.8,4.5872]
[1727361329598,3.79514,2635.0,2634.5,3.79572]
[1727361330993,7.6274407,2635.2,2634.6,3.79555]
[1727361331209,3.79502,2635.1,2634.5,3.79572]
[1727361331358,3.79502,2635.1,2634.5,3.79569]
[1727361331698,3.79502,2635.1,2634.5,3.79567]
[1727361331995,3.79493,2635.1,2634.6,3.79559]
[1727361332368,3.8325407,2635.2,2634.7,0.08266369]
[1727361332575,3.8325407,2635.2,2634.7,3.87814369]
[1727361332772,0.0376807,2635.2,2634.8,0.07590541]
[1727361333072,0.0376807,2635.2,2634.9,3.87469685]
[1727361333302,0.0376807,2635.2,2634.9,0.07956685]
[1727361333462,0.0376807,2635.2,2634.9,3.87469685]
[1727361334004,0.0376807,2635.2,2635.0,4.54807]
[1727361334500,0.0376807,2635.2,2635.1,4.50015078]
[1727361334661,0.0376807,2635.2,2635.1,7.50013689]
[1727361334864,4.5476,2636.5,2635.8,4.54701]
[1727361334865,3.793,2636.5,2635.8,4.54701]
[1727361335313,3.79305,2636.4,2635.8,3.87235463]
[1727361335600,0.7922807,2636.7,2635.8,3.94822671]
[1727361335601,3.79287,2636.6,2635.8,3.94822671]
[1727361335770,0.0376807,2636.7,2635.8,4.49822671]
[1727361335979,0.0376807,2636.7,2635.8,5.30782671]
[1727361336200,0.0376807,2636.7,2635.8,8.30782671]
[1727361336393,3.8303007,2636.7,2635.8,8.23195463]
[1727361336712,3.8303107,2636.7,2635.8,8.23195463]
[1727361336905,0.0376807,2636.7,2635.8,8.23195463]
[1727361337443,0.0376807,2636.7,2636.6,9.81213642]
[1727361337624,0.0376807,2637.5,2637.4,4.59881]
[1727361337925,0.0376807,2638.3,2637.9,3.79078]
[1727361338086,0.0376807,2638.3,2637.9,8.44945642]
[1727361338287,0.0376807,2638.3,2638.0,0.07515912]
[1727361339196,4.54669,2638.7,2638.0,0.15097415]
[1727361339393,0.0157426,2638.3,2638.1,0.07467271]
[1727361340021,0.0157426,2638.3,2638.1,0.84217271]
[1727361340686,0.0157426,2638.3,2638.1,0.91797401]
[1727361340879,0.0157426,2638.3,2638.2,4.34046]
[1727361341098,0.0157426,2638.3,2638.2,4.41625213]
[1727361341298,0.0157426,2638.3,2638.2,4.49042983]
[1727361341705,0.0157426,2638.3,2638.2,7.4146377]
[1727361342103,0.0412976,2638.8,2638.2,7.4146377]
[1727361342316,0.0412976,2638.8,2638.7,5.97797642]
[1727361342529,0.0412976,2638.8,2638.7,5.42797642]
[1727361342741,0.0412976,2638.8,2638.7,0.07335286]
[1727361342902,3.8308976,2638.8,2638.7,0.07335286]
[1727361343104,4.21398736,2638.8,2637.9,4.65867642]
[1727361343324,3.79004,2638.5,2637.9,4.65867642]
[1727361343614,4.21398736,2638.8,2637.9,4.65867642]
[1727361343615,0.42438736,2638.8,2637.9,4.65867642]
[1727361343820,3.79029,2638.4,2637.7,0.7693]
[1727361344149,3.79014,2638.5,2637.7,4.56048]
[1727361344301,3.79017,2638.4,2637.7,4.56048]
[1727361344645,0.38310476,2638.6,2637.7,0.7693]
[1727361344941,3.79046,2638.2,2637.3,4.60663]
[1727361345242,3.79076,2638.0,2637.3,4.60663]
[1727361345632,3.79076,2638.0,2637.3,0.8149]
[1727361345948,0.09477095,2637.9,2636.9,4.61827]
[1727361346131,3.79117,2637.8,2636.9,4.61827]
[1727361346303,3.79136,2637.6,2636.9,0.826]
[1727361346721,3.79162,2637.4,2636.9,0.826]
[1727361346903,3.79162,2637.4,2636.6,0.826]
[1727361346904,3.79186,2637.3,2636.6,0.826]
[1727361347127,3.79162,2637.4,2636.7,3.7926]
[1727361347328,0.7748,2637.5,2636.7,3.7926]
[1727361347329,0.7748,2637.5,2636.8,3.79246]
[1727361347527,3.79139,2637.6,2636.7,3.7926]
[1727361347746,3.79174,2637.4,2636.6,0.826]
[1727361347946,0.379139,2637.5,2636.6,0.826]
[1727361348109,3.79229,2637.0,2636.6,0.826]
[1727361348308,3.79197,2637.2,2636.3,3.79314]
[1727361348309,3.79264,2636.7,2636.3,0.7564]
[1727361349235,3.79264,2636.7,2636.0,3.79352]
[1727361349477,3.79238,2636.9,2636.2,3.79332]
[1727361349681,3.79238,2636.9,2636.3,3.79319]
[1727361350771,3.79262,2636.7,2636.1,3.79334]
[1727361350971,3.79262,2636.7,2636.0,7.34352]
[1727361350972,7.58535,2636.7,2636.0,7.34352]
[1727361351174,7.58535,2636.7,2636.0,3.55]
[1727361351175,3.79279,2636.6,2636.0,3.55]
[1727361351377,3.793,2636.5,2636.0,3.0]
[1727361351767,3.793,2636.5,2635.7,3.79399]
[1727361351768,3.79334,2636.2,2635.7,3.79399]
[1727361351981,3.79334,2636.2,2635.5,8.35641]
[1727361352279,3.7938,2635.9,2635.5,0.7679]
[1727361352789,7.58658,2636.3,2635.6,3.79417]
[1727361352993,3.79325,2636.3,2635.7,0.07587309]
[1727361353165,3.79374,2636.0,2635.5,0.7679]
[1727361353675,3.79374,2636.0,2635.6,0.07612806]
[1727361355158,7.58686,2636.2,2635.6,3.87030806]
[1727361355353,3.79357,2636.1,2635.6,0.07612806]
[1727361355703,0.457815,2636.3,2635.6,0.07612806]
[1727361355704,3.79386,2635.9,2635.6,0.07612806]
[1727361355988,3.7935,2636.1,2635.6,3.87029806]
[1727361356405,0.7849,2636.5,2635.7,3.86992537]
[1727361356406,7.5863,2636.4,2635.7,3.86992537]
[1727361356711,4.57076,2636.8,2636.2,3.79326]
[1727361356864,0.7782,2637.1,2636.2,3.79326]
[1727361357180,3.79272,2636.7,2636.3,0.07667866]
[1727361357356,3.79278,2636.6,2636.3,0.07667866]
[1727361357562,3.79292,2636.5,2635.9,0.8009]
[1727361357878,3.79292,2636.5,2635.7,8.33049682]
[1727361357879,3.79401,2635.8,2635.4,0.0412976]
[1727361358607,3.79369,2636.0,2635.4,3.8357076]
[1727361358755,3.79341,2636.2,2635.4,0.0412976]
[1727361359102,7.60792,2636.4,2635.8,3.79384]
[1727361359295,7.60792,2636.4,2635.7,3.79405]
[1727361359296,0.8148,2636.4,2635.7,3.79405]
[1727361359503,0.8148,2636.4,2635.5,3.79425]
[1727361359504,3.79348,2636.1,2635.5,3.79425]
[1727361359701,4.60794,2636.4,2635.5,3.79423]
[1727361359872,3.79327,2636.3,2635.7,7.58794]
[1727361360058,3.79327,2636.3,2635.7,3.79396]
[1727361360262,3.7776,2637.2,2635.9,0.815]
[1727361360455,3.79313,2636.4,2635.9,4.60875]
[1727361360910,4.57042,2636.6,2635.9,4.60875]
[1727361361086,3.79282,2636.6,2636.1,3.7934]
[1727361361260,3.79255,2636.8,2636.1,3.79338]
[1727361361456,3.79286,2636.6,2635.9,3.79374]
[1727361361797,3.79328,2636.3,2635.8,3.79387]
[1727361362095,3.79351,2636.1,2635.6,3.7941]
[1727361362296,3.79387,2635.9,2635.4,0.0412976]
[1727361362454,3.79357,2636.1,2635.6,3.79419]
[1727361362659,3.79343,2636.2,2635.7,3.79401]
[1727361363112,3.79343,2636.2,2635.4,0.0412976]
[1727361363113,3.79317,2636.4,2635.8,0.07587543]
[1727361363263,0.8058,2636.5,2635.8,3.79387]
[1727361363463,3.79313,2636.4,2635.9,0.07586684]
[1727361363804,7.58627,2636.4,2635.9,3.79374]
[1727361363963,3.79313,2636.4,2635.9,3.79374]
[1727361364157,3.79313,2636.4,2635.9,3.79368]
[1727361364386,0.8058,2636.5,2636.1,3.79346]
[1727361364755,4.171785,2636.8,2635.9,4.60738]
[1727361364756,0.753,2636.8,2636.4,3.79304]
[1727361364992,3.79232,2637.0,2636.5,3.79288]
[1727361365200,3.79232,2637.0,2636.2,0.07586666]
[1727361365201,0.548232,2637.0,2636.2,0.07585674]
[1727361365403,0.548232,2637.0,2635.9,0.8137]
[1727361365602,3.79266,2636.7,2636.0,3.79362]
[1727361365772,3.79292,2636.5,2636.0,3.79362]
[1727361365960,3.79266,2636.7,2636.1,7.58679]
[1727361366161,3.79266,2636.7,2636.1,3.79338]
[1727361366389,3.79284,2636.6,2636.1,3.79338]
[1727361366702,4.54513,2637.1,2636.4,3.79303]
[1727361367011,11.1608,2638.0,2636.8,3.79236]
[1727361367012,0.8049,2637.4,2636.8,3.79236]
[1727361367294,0.8049,2637.4,2636.4,3.79296]
[1727361367295,3.7923,2637.0,2636.4,3.79296]
[1727361368062,3.88711137,2637.0,2636.4,3.79296]
[1727361368267,3.79212,2637.1,2636.3,8.114]
[1727361368469,3.7918,2637.3,2636.4,0.07585287]
[1727361368679,8.34619,2637.7,2637.1,3.79203]
[1727361368877,3.79133,2637.6,2637.2,0.07280255]
[1727361369263,3.79133,2637.6,2637.3,0.07268787]
[1727361369462,4.55491,2637.7,2636.9,0.8207]
[1727361369702,3.79172,2637.4,2637.0,0.07303191]
[1727361369883,3.79147,2637.5,2637.0,0.07303191]
[1727361370206,1.330799,2637.7,2636.8,4.98238648]
[1727361370207,0.7637,2637.7,2636.8,4.98238648]
[1727361370359,0.7517,2638.2,2637.3,3.8095]
[1727361370566,4.54179,2638.5,2637.7,3.79105]
[1727361370802,4.54179,2638.5,2637.3,0.8095]
[1727361370803,4.5418,2638.5,2637.4,0.07257321]
[1727361370963,4.5418,2638.5,2637.8,3.86312464]
[1727361371194,4.5418,2638.5,2637.3,3.8095]
[1727361371195,0.7517,2638.5,2637.9,0.07200002]
[1727361371398,3.79041,2638.3,2637.8,3.79103]
[1727361371611,3.79041,2638.3,2637.9,0.07200002]
[1727361371806,4.5418,2638.5,2637.9,0.07200002]
[1727361372043,3.79105,2637.8,2637.3,4.60114]
[1727361372201,3.79105,2637.8,2637.4,0.07257321]
[1727361372540,3.79086,2638.0,2637.4,0.07257321]
[1727361372698,3.79086,2638.0,2637.4,3.86417321]
[1727361372898,3.79085,2638.0,2637.4,3.86417321]
[1727361373237,3.79053,2638.2,2637.5,7.58281]
[1727361373396,3.0,2638.4,2637.6,0.88624391]
[1727361373731,4.55756,2638.6,2637.9,7.58159]
[1727361373906,5.31744576,2638.6,2637.7,0.55]
[1727361374241,0.7676,2638.6,2638.1,3.79058]
[1727361374449,0.0412976,2638.8,2638.2,0.07165622]
[1727361374612,0.0412976,2638.8,2637.9,3.79081]
[1727361374613,3.79013,2638.5,2637.9,3.79081]
[1727361374797,3.79013,2638.5,2638.0,0.07188541]
[1727361375005,3.79021,2638.4,2638.0,0.07188541]
[1727361375342,0.7795,2638.3,2637.6,4.60512]
[1727361375546,4.60327,2638.6,2638.1,0.07177081]
[1727361375847,3.78977,2638.7,2638.2,0.88705622]
[1727361376049,3.79031,2638.3,2638.2,0.07165622]
[1727361376247,3.78995,2638.6,2637.9,3.79089]
[1727361376451,3.79013,2638.5,2638.0,0.07188541]
[1727361376749,0.84339876,2638.7,2638.0,0.07188541]
[1727361376750,3.7906,2638.2,2638.0,0.07188541]
[1727361376906,7.58116,2638.2,2638.0,0.07188541]
[1727361377113,3.79056,2638.2,2637.6,4.60671]
[1727361377308,3.79056,2638.2,2638.1,0.07177081]
[1727361377513,3.79056,2638.2,2637.7,3.79118]
[1727361377710,3.79007,2638.5,2638.1,0.07177081]
[1727361377916,3.79019,2638.4,2637.8,3.79093]
[1727361378219,3.79064,2638.1,2637.6,4.60664]
[1727361378628,7.58076,2638.3,2637.7,3.79117]
[1727361378827,3.0412976,2638.8,2637.8,3.79101]
[1727361378828,3.79012,2638.5,2637.8,3.79101]
[1727361379133,3.77174766,2638.5,2637.8,3.79101]
[1727361379342,3.79009,2638.5,2637.7,4.34108]
[1727361379515,3.79029,2638.4,2637.8,3.791]
[1727361380054,3.79048,2638.2,2637.6,4.60663]
[1727361380528,3.79048,2638.2,2637.7,7.58218]
[1727361380726,3.79048,2638.2,2637.7,3.79109]
[1727361381034,4.61195,2638.3,2637.6,0.8154]
[1727361381230,3.79084,2638.0,2637.6,0.8154]
[1727361381625,3.79018,2638.4,2637.7,8.77346648]
[1727361381828,3.78998,2638.6,2638.0,3.79074]
[1727361382115,3.7901,2638.5,2637.9,3.79088]
[1727361382315,0.0412976,2638.8,2637.9,3.79088]
[1727361382316,3.78991,2638.6,2637.9,7.58155]
[1727361382518,0.0412976,2638.8,2638.2,0.7925]
[1727361382717,0.0412976,2638.8,2638.4,3.79016]
[1727361382956,0.0412976,2638.8,2638.4,0.07579526]
[1727361383127,0.0412976,2638.8,2638.3,3.79024]
[1727361383328,0.0412976,2638.8,2638.3,3.79023]
[1727361383562,0.0412976,2638.8,2638.4,3.86593449]
[1727361383716,0.0412976,2638.8,2638.5,7.57992]
[1727361383918,0.0412976,2638.8,2638.6,0.07578845]
[1727361384117,0.0412976,2638.8,2638.6,3.93598821]
[1727361384318,0.0412976,2638.8,2638.6,3.86019976]
[1727361384539,0.0412976,2638.8,2638.7,3.78974]
[1727361384965,0.0412976,2638.8,2638.7,3.86005521]
[1727361385320,0.0412976,2638.8,2638.7,0.07031521]
[1727361385764,0.0412976,2638.8,2638.7,4.54324]
[1727361385917,0.0412976,2638.8,2638.7,5.16355521]
[1727361386758,0.0412976,2638.8,2638.7,4.61355521]
[1727361387132,0.0412976,2638.8,2638.7,0.82381521]
[1727361387661,0.0412976,2638.8,2638.7,0.07031521]
[1727361387839,0.0412976,2638.8,2638.4,0.7972]
[1727361387840,3.8308976,2638.8,2638.4,0.7972]
[1727361388034,3.78985,2638.7,2638.5,0.07054432]
[1727361388333,0.0412976,2638.8,2638.3,3.79024]
[1727361388535,0.0412976,2638.8,2638.6,0.07042976]
[1727361388740,0.0412976,2638.8,2638.3,3.79024]
[1727361388952,3.8309276,2638.8,2638.7,0.07031521]
[1727361389122,3.79034,2638.3,2638.1,0.7972]
[1727361389462,4.59298436,2638.8,2638.2,0.07088805]
[1727361389463,0.8002,2638.7,2638.2,0.07088805]
[1727361389769,0.8002,2638.7,2637.2,0.8]
[1727361389770,4.59054,2638.3,2637.2,0.8]
[1727361389926,3.79075,2638.0,2637.2,0.8]
[1727361390120,3.79161,2637.4,2637.3,0.07191971]
[1727361390435,3.79161,2637.4,2636.9,0.8]
[1727361390767,3.79161,2637.4,2637.0,0.07226375]
[1727361390927,3.79204,2637.1,2637.0,0.07226375]
[1727361391259,3.79191,2637.2,2636.4,0.7603]
[1727361391465,3.7924,2636.9,2636.5,0.07283733]
[1727361391827,4.984501,2637.4,2636.6,3.86850589]
[1727361391828,3.79198,2637.2,2636.6,3.86850589]
[1727361392048,3.79255,2636.8,2636.7,0.07260787]
[1727361392365,3.79263,2636.7,2636.4,0.7603]
[1727361392565,3.79283,2636.6,2636.4,0.7603]
[1727361392933,3.79317,2636.4,2636.0,0.8062]
[1727361393724,3.79333,2636.3,2636.0,0.8062]
[1727361393883,3.8005,2636.9,2635.7,4.98238648]
[1727361394176,3.8005,2636.9,2635.7,8.77640648]
[1727361394177,3.79327,2636.3,2635.7,8.77640648]
[1727361394377,3.79335,2636.2,2635.7,8.77640648]
[1727361394567,3.79299,2636.5,2635.7,8.77640648]
[1727361394777,3.79299,2636.5,2635.6,4.60026]
[1727361394778,3.79352,2636.1,2635.6,0.8062]
[1727361394942,3.79365,2636.0,2635.6,0.8062]
[1727361395761,3.79377,2635.9,2635.6,0.8062]
[1727361396073,3.79293,2636.5,2635.7,4.98238648]
[1727361396230,3.79293,2636.5,2635.8,3.79387]
[1727361397172,3.79293,2636.5,2636.0,3.79362]
[1727361397490,7.58592,2636.5,2636.0,3.79362]
[1727361397696,3.79293,2636.5,2636.0,3.79362]
[1727361398255,3.79293,2636.5,2635.8,3.79387]
[1727361398256,3.7929,2636.5,2635.8,3.79387]
[1727361398464,7.58592,2636.5,2635.8,3.79383]
[1727361398670,3.7929,2636.5,2635.9,3.8682634]
[1727361398958,3.7929,2636.5,2636.0,3.79354]
[1727361399367,3.7929,2636.5,2636.1,0.07437384]
[1727361400292,4.59295,2636.9,2636.2,3.7932]
[1727361400492,4.59295,2636.9,2636.3,0.14999669]
[1727361400694,3.79282,2636.6,2636.3,0.07414432]
[1727361400903,3.79282,2636.6,2635.6,0.8062]
[1727361400904,3.79319,2636.3,2635.6,0.8062]